Cogmind - Beta 13 @@@ ROGUE MODE // 2024.04.07 @ 19:39:24 Player: JunkerBernd Result: Self-destructed Performance ------------- Evolutions (2) 1000 Regions Visited (3) 600 Robots Destroyed (39) 195 Value Destroyed (1428) 1428 Prototype IDs (0) 0 Alien Tech Used (0) 0 Bonus (0) 0 TOTAL SCORE: 3223 Bonus ------- None Cogmind --------- Core Integrity 132/550 Matter 185/300 Energy 150/150 System Corruption 0% Temperature Cool (0) Movement Walking (190) Ox1 Location -8/Materials Parts ------- > --- POWER (2) -------- Light Angular Momentum Engine > --- PROPULSION (4) --- Improved Aluminum Leg Carbon-fiber Leg > --- UTILITY (2) ------ Improved Heat Sink Large Storage Unit > --- WEAPON (3) ------- Heavy Laser > --- INVENTORY (15) --- Ion Engine Light Ion Engine Reinforced Ion Engine Light Nuclear Core Light Nuclear Core Light Nuclear Core Light Treads Light Treads Aluminum Leg Improved Heat Sink Medium Storage Unit Ion Cannon Peak State ------------ > --- POWER ------------ Reinforced Ion Engine Light Angular Momentum Engine > --- PROPULSION ------- Aluminum Leg Aluminum Leg Carbon-fiber Leg Carbon-fiber Leg > --- UTILITY ---------- Improved Heat Sink Medium Storage Unit > --- WEAPON ----------- Heavy Laser Ion Cannon Ion Cannon > --- INVENTORY -------- Ion Engine Light Ion Engine Deuterium Engine Light Nuclear Core Light Nuclear Core Light Nuclear Core Light Treads Light Treads Improved Heat Sink Medium Storage Unit [Rating: 31] Favorites ----------- Power Reinforced Ion Engine Engine Reinforced Ion Engine Power Core Light Nuclear Core Propulsion Aluminum Leg Leg Aluminum Leg Utility Improved Heat Sink Device Improved Heat Sink Storage Medium Storage Unit Weapon Ion Cannon Energy Gun EM Pulse Gun Energy Cannon Ion Cannon Ballistic Gun Assault Rifle Build | -11 -10 -9 -8 ------- Run | Yrd Mat Mat Mat Slots Evolved 4 | . . 2 2 Power 1 | . . . 1 Propulsion 2 | . . 2 . Utility . | . . . . Weapon 1 | . . . 1 Parts Attached 50 | 8 4 14 24 Power 13 | 1 1 1 10 Engine 11 | 1 1 1 8 Core 2 | . . . 2 Reactor . | . . . . Propulsion 19 | 2 1 8 8 Treads . | . . . . Leg 19 | 2 1 8 8 Wheel . | . . . . Hover . | . . . . Flight . | . . . . Utility 6 | 1 1 2 2 Device 3 | . 1 1 1 Storage 3 | 1 . 1 1 Processor . | . . . . Hackware . | . . . . Protection . | . . . . Artifact . | . . . . Weapon 12 | 4 1 3 4 Energy Gun 3 | 1 1 . 1 Energy Cannon 6 | . . 3 3 Ballistic Gun 3 | 3 . . . Ballistic Cannon . | . . . . Launcher . | . . . . Special Weapon . | . . . . Impact Weapon . | . . . . Slashing Weapon . | . . . . Piercing Weapon . | . . . . Special Melee Weapon . | . . . . Unidentified Prototypes . | . . . . Parts Lost 16 | . 1 4 11 Power 3 | . . 1 2 Propulsion 8 | . . 2 6 Utility 1 | . . 1 . Weapon 4 | . 1 . 3 Highest Loss Streak 5 | . 1 2 5 To Critical Strikes . | . . . . Average Slot Usage (%) 89 | . 87 98 82 Engine 11 | . 14 10 11 Core 2 | . . . 4 Leg 33 | . 28 43 27 Device 8 | . 3 10 9 Storage 10 | . 14 11 9 Energy Gun 3 | . 2 3 2 Energy Cannon 14 | . . 14 18 Ballistic Gun 5 | . 24 3 . Naked Turns . | . . . . Heaviest Build 49 | 12 15 30 49 Greatest Support 53 | 20 20 40 53 Greatest Overweight (x) 7 | . . . 7 Average Overweight (x) . | . . . . Largest Inventory Capacity 15 | 8 8 10 15 Average Capacity 9 | 6 8 9 10 Most Carried 12 | 6 8 10 12 Average Carried 9 | 3 6 9 9 Final Capacity 15 | 8 8 10 15 Final Carried 12 | 6 8 10 12 Class Distribution -------------------- 57% | Scavenger-Mutant 22% | Scavenger-Gunner 20% | Mutant Dominant Class ---------------- Mutant | -10/Materials Scavenger-Mutant | -9/Materials Scavenger-Mutant | -8/Materials Resources | -11 -10 -9 -8 ----------- Run | Yrd Mat Mat Mat Matter Collected 758 | 162 247 172 177 Remotely . | . . . . Salvage Created 1639 | . 252 616 771 Parts 81 | . 13 35 33 Haulers Intercepted . | . . . . Recyclers Shooed 2 | . 1 . 1 Parts Field Recycled . | . . . . Retrieved Matter . | . . . . Parts Self-Destructed . | . . . . Prevented . | . . . . Kills | -11 -10 -9 -8 ------- Run | Yrd Mat Mat Mat Combat Hostiles Destroyed 35 | . 6 15 14 Guns 8 | . 6 2 . Cannons 26 | . . 12 14 Classes Destroyed 8 | . 1 3 4 Worker 1 | . . 1 . Builder 1 | . . . 1 Watcher 2 | . . . 2 Swarmer 4 | . . 4 . Grunt 27 | . 6 9 12 Brawler 1 | . . . 1 Duelist 1 | . . . 1 Sentry 2 | . . 2 . Best Kill Streak 7 | . 3 7 6 Combat Bots Only 6 | . 3 6 6 Max Kills in Single Turn 2 | . 1 2 1 Gunslinging . | . . . . Exploded . | . . . . Melee . | . . . . Uniques/NPCs Destroyed . | . . . . Combat | -11 -10 -9 -8 -------- Run | Yrd Mat Mat Mat Hostile Shots Fired 295 | . 37 118 140 Missed 91 | . 10 35 46 Damage Taken 2906 | . 358 970 1578 Core 615 | . 121 76 418 Absorbed by Shields . | . . . . Core Remaining (%) 77 | 100 51 81 . Volleys Fired 128 | . 28 54 46 Largest 3 | . 2 2 3 Hottest 180 | . 40 120 180 Shots Fired 245 | . 54 99 92 Gun 73 | . 54 16 3 Cannon 172 | . . 83 89 Launcher . | . . . . Special . | . . . . Kinetic 62 | . 54 8 . Thermal 175 | . . 83 92 Explosive . | . . . . Electromagnetic 8 | . . 8 . Robot Hit Streak 13 | . 9 8 13 Robot Miss Streak 5 | . 4 5 5 Penetration Max . | . . . . Secondary Targets 1 | . 1 . . Max Gunslinging Chain 1 | . 1 . . Shots Hit Robots 151 | . 31 57 63 Core Hits 62 | . 14 18 30 Critical Kills 1 | . . 1 . Critical Parts Destroyed . | . . . . Critical Strikes 1 | . . 1 . Meltdown 1 | . . 1 . Melee Attacks . | . . . . Impact . | . . . . Slashing . | . . . . Piercing . | . . . . Sneak Attacks . | . . . . Combat Hostiles . | . . . . Follow-up Attacks . | . . . . Damage Inflicted 3154 | . 334 1312 1508 Guns 494 | . 329 129 36 Cannons 2597 | . . 1176 1421 Explosions . | . . . . Melee . | . . . . Ramming 63 | . 5 7 51 Kinetic 391 | . 329 62 . Thermal 2633 | . . 1176 1457 Explosive . | . . . . Electromagnetic 67 | . . 67 . Impact . | . . . . Slashing . | . . . . Piercing . | . . . . Highest Corruption . | . . . . Average Corruption . | . . . . Corruption Purged . | . . . . Corruption Blocked . | . . . . Overload Shots . | . . . . Overflow Damage 71 | . . 33 38 Projectiles 71 | . . 33 38 Explosions . | . . . . Melee . | . . . . Knockbacks . | . . . . Impact . | . . . . Kinetic . | . . . . Secondary . | . . . . Self-Inflicted Damage . | . . . . Shots . | . . . . Rammed . | . . . . Targets Rammed 8 | . 1 2 5 Kicked 8 | . 1 2 5 Crushed . | . . . . Highest Temperature 451 | . 21 392 451 Average Temperature 127 | . 9 126 147 Received Heat Transfer 1146 | . 207 345 594 Effects 9 | . . 3 6 Shutdowns 3 | . . 1 2 Energy Bleed 1 | . . . 1 Interference 2 | . . 2 . Matter Decay 2 | . . . 2 Damage (minor) 1 | . . . 1 Siege Activations . | . . . . Robots Corrupted . | . . . . Combat Hostiles . | . . . . Parts Fried 1 | . . 1 . Impact Corruptions . | . . . . Robots Melted 1 | . . 1 . Combat Hostiles 1 | . . 1 . Parts Melted 10 | . . 5 5 Heat Transferred 4255 | . . 1887 2368 Parts Sabotaged . | . . . . Parts Stolen . | . . . . Parts Stripped . | . . . . Power Chain Reactions . | . . . . Alert | -11 -10 -9 -8 ------- Run | Yrd Mat Mat Mat Peak Influence 365 | . 207 365 305 Initial 138 | . . 87 138 Average 191 | . 105 232 207 Maximum Alert Level 1 | . 1 1 1 Low Security (%) 48 | 100 74 40 40 Level 1 51 | . 25 59 59 Level 2 . | . . . . Level 3 . | . . . . Level 4 . | . . . . Level 5 . | . . . . High Security . | . . . . Max Security . | . . . . Squads Dispatched 7 | . 2 2 3 Investigation 1 | . . . 1 Extermination . | . . . . Reinforcement 6 | . 2 2 2 Assault . | . . . . Garrison . | . . . . Intercept . | . . . . Searches Triggered . | . . . . Construction Impeded . | . . . . Haulers Reinforced . | . . . . Active Scanning Responses . | . . . . Cargo Convoy Interrupts . | . . . . Stealth | -11 -10 -9 -8 --------- Run | Yrd Mat Mat Mat Distress Signals 5 | . 1 4 . Communications Jammed . | . . . . Distress Signals . | . . . . Times Spotted 67 | . 10 29 28 Peak Tracking Total 9 | . 4 9 8 Tactical Retreats 2 | . . . 2 Traps | -11 -10 -9 -8 ------- Run | Yrd Mat Mat Mat Traps Triggered 2 | . . 1 1 Indirectly . | . . . . Trap Hack Attempts . | . . . . Triggered . | . . . . Disarmed . | . . . . Reprogrammed . | . . . . Reused . | . . . . Traps Extracted . | . . . . Installed . | . . . . Triggered . | . . . . Machines | -11 -10 -9 -8 ---------- Run | Yrd Mat Mat Mat Machines Disabled 3 | . . 2 1 Max in Single Turn 1 | . . 1 1 Machines Repaired . | . . . . Machines Dismantled . | . . . . Machines Sabotaged . | . . . . Overloaded Fab Kills . | . . . . Hacking | -11 -10 -9 -8 --------- Run | Yrd Mat Mat Mat Machines Accessed 4 | . 3 . 1 Terminals 4 | . 3 . 1 Fabricators . | . . . . Repair Stations . | . . . . Recycling Units . | . . . . Scanalyzers . | . . . . Garrison Access . | . . . . Total Hacks 13 | . 10 . 3 Successful 8 | . 7 . 1 Failed 5 | . 3 . 2 Catastrophic . | . . . . Database Lockouts . | . . . . Manual 2 | . 2 . . Terminals 13 | . 10 . 3 Fabricators . | . . . . Repair Stations . | . . . . Recycling Units . | . . . . Scanalyzers . | . . . . Garrison Access . | . . . . Terminal Hacks 8 | . 7 . 1 Record 2 | . 2 . . Robot Analysis 2 | . 1 . 1 Emergency Access Points 1 | . 1 . . Dispatch Records 1 | . 1 . . Recall Investigation 1 | . 1 . . Registered Components 1 | . 1 . . Fabricator Hacks . | . . . . Repair Station Hacks . | . . . . Recycling Unit Hacks . | . . . . Scanalyzer . | . . . . Garrison Access Hacks . | . . . . Unauthorized Hacks . | . . . . Terminals . | . . . . Fabricators . | . . . . Repair Stations . | . . . . Recycling Units . | . . . . Scanalyzers . | . . . . Garrison Access . | . . . . Data Cores Recovered . | . . . . Used . | . . . . Hacking Detections 4 | . 3 . 1 Full Trace Events . | . . . . Feedback Events . | . . . . Feedback Blocked . | . . . . Robot Schematics Acquired . | . . . . Robots Built . | . . . . Authchips . | . . . . Time . | . . . . Total Robot Build Rating . | . . . . Part Schematics Acquired . | . . . . Parts Built . | . . . . Authchips . | . . . . Time . | . . . . Total Part Build Rating . | . . . . Parts Repaired . | . . . . Time . | . . . . Parts Recycled . | . . . . Recycled Matter . | . . . . Retrieved Matter . | . . . . Retrieved Components . | . . . . Parts Scanalyzed . | . . . . Part Schematics Acquired . | . . . . Parts Damaged . | . . . . Bothacking | -11 -10 -9 -8 ------------ Run | Yrd Mat Mat Mat Used RIF Installer . | . . . . Robots Hacked . | . . . . Non-combat . | . . . . Combat . | . . . . Robot Hacks Applied . | . . . . Relay Couplers Released . | . . . . Fabnet Peak Effective % . | . . . . Robots Rewired . | . . . . Allies Hacked . | . . . . Hacks Repelled . | . . . . Allies | -11 -10 -9 -8 -------- Run | Yrd Mat Mat Mat Total Allies . | . . . . Largest Group . | . . . . Highest-Rated Group . | . . . . Highest-Rated Ally . | . . . . Total Orders . | . . . . Ally Attacks . | . . . . Total Damage . | . . . . Kills . | . . . . Allies Corrupted . | . . . . Allies Melted . | . . . . Intel | -11 -10 -9 -8 ------- Run | Yrd Mat Mat Mat Robot Analysis Total 2 | . 1 . 1 Derelict Logs Recovered . | . . . . Drone Launches . | . . . . Drone Recoveries . | . . . . Exploration | -11 -10 -9 -8 ------------- Run | Yrd Mat Mat Mat Turns Passed 1814 | 75 286 588 865 Spaces Moved 984 | 52 162 333 437 Core 6 | 5 . . 1 Treads . | . . . . Legs 978 | 47 162 333 436 Wheels . | . . . . Hover . | . . . . Flight . | . . . . Fastest Speed 50 | 50 120 120 120 Average Speed 135 | 113 120 120 156 Slowest Speed 400 | 120 120 120 400 Overloaded Moves . | . . . . Propulsion Burnouts . | . . . . Robots Hopped . | . . . . Cave-ins Triggered . | . . . . Exploration Rate (%) 29 | 4 32 41 40 Regions Visited 3 Branch Regions . Pre-discovered Areas . | . . . . Known Exits Taken . | . . . . Unknown Exits Taken 3 | 1 1 1 . Scrap Searched . | . . . . Spaces Dug . | . . . . Terrain Destroyed 13 | . . 8 5 Melee . | . . . . Projectile 13 | . . 8 5 AOE . | . . . . Terrain Rammed . | . . . . Walls Destroyed . | . . . . Machines Disabled . | . . . . Actions | -11 -10 -9 -8 --------- Run | Yrd Mat Mat Mat Total 1222 | 64 206 426 526 Wait 1 | . 1 . . Move 981 | 51 161 332 437 Hop . | . . . . Pick Up 24 | 5 6 10 3 Fast Attach 21 | 6 1 4 10 Attach 8 | . 1 2 5 Detach 4 | . . . 4 Swap 21 | 2 2 8 9 Drop 26 | . 5 14 7 Fire 128 | . 28 54 46 Melee . | . . . . Ram . | . . . . Kick 8 | . 1 2 5 Crush . | . . . . Escape Stasis . | . . . . Rewire . | . . . . Trap . | . . . . Miscellaneous . | . . . . Route ------- -11/Scrapyard -10/Materials -9/Materials (discovered 2 exits: *Mat / [*Min]) -8/Materials History --------- Turn | Location | Event 2 | -11/Scrapyard | Discovered new exit (range 16) 76 | -11/Scrapyard | Entered Materials 333 | -10/Materials | Build established: Mutant 348 | -10/Materials | Discovered new exit (range 9) 362 | -10/Materials | Entered another Materials area 362 | -9/Materials | Evolved 2 slots: Propulsion x2 434 | -9/Materials | Discovered new exit (range 16) 636 | -9/Materials | Build established: Scavenger-Mutant 933 | -9/Materials | Discovered new exit (range 8) 950 | -9/Materials | Entered another Materials area 950 | -8/Materials | Evolved 2 slots: Power x1, Weapon x1 1132 | -8/Materials | Lost 5 parts (1p3n1w) 1724 | -8/Materials | Core integrity fell below 50% 1815 | -8/Materials | Self-destructed Last Messages --------------- Slug penetrates Wall. U-05 Engineer builds a Door. Kicked W-25 Informer out of the way. Kicked U-05 Engineer out of the way. U-05 Engineer destroyed. R-06 Scavenger collects Aluminum Leg. Penetrated by Slug. Slug penetrates Wall. ALERT: Suspicious intruders detected, dispatching Specialist reinforcements to area. Slug penetrates Wall. Aluminum Leg destroyed. Nuclear Reactor explodes. X-57 Shotgunner destroyed. Ion Cannon destroyed. Carbon-fiber Leg destroyed. H-55 Commando destroyed. The unstable cave ceiling collapses. Critical hit (Burn: +37). Deuterium Engine destroyed. Map ----- +----------------------------------------------------+ | | | | | | | | | | | | | | | | | | | | | | | | | | | | | | | ?????????????????????????????????????????????????? | | ?????????????????????????????????????????????????? | | ?????????????????????????????????????????????????? | | ????????????????????######???????????????????????? | | ????????????????????# #??????????????????????? | | ????????????????????# "" #??????????????????????? | | ????????????????????# "T #??????????????????????? | | ????????????????????# "" #??????????????????????? | | ????????????????????# #??????????????????????? | | ????????????????????# #??????????????????????? | | ?????????????????#### """@#???????? ????? ?????? | | ????????????###### ## """ #??????# ??## ????? | | ????????????# ## """ #??????# ? ????? | | ??????#####?# """ ## #??????#! ? #??##? | | ??????? # """ ## x #??????# """ #?? ? | | ????????""" """ # #??????# """ #? ?? | | ????????""" ###Y########## """ # ??? | | ????????""" [ # ???? | | ??? +????? | | ??? [ """ #????? | | ?????###### % ############# """ #????? | | ??????????# #???????????#" """ #????? | | ????????] #???????????#T #????? | | ?????? = #############" #????? | | ????? # %= #????? | | ?????### #????? | | ???????## ### # ### #### ###### | | ????????# ###/#######+###### ######??# # | | ????????# ?# ! #???# #???????# # "" | | ???????? ??# #???# #???????# # G" | | ???????????+ """"" #???# #???????# / "" | | ???????????# """"""""" =#???# #???????# # | | ???????????# """ """ #???# #???????# #= ! | | ???????????##############???# #???????# ####/# | | ???????????????????????????? ??????# ??#%# | +----------------------------------------------------+ Best States ------------- Heat Dissipation 45 Energy Generation 27 Energy Capacity 400 Matter Stores 300 Matter Capacity 300 Sight Range 16 Terrain Scan Density 10 Evasion (%) 55 Item Schematics ----------------- None Robot Schematics ------------------ None Fabricated ------------ Nothing Alien Tech Used ----------------- None Achievements -------------- None Challenges ------------ None Game ------ Seed HackingHardlightSuite Manual? 0 Play Time 00:31:44 Cumulative 3.9 hours Start 2024.04.07 @ 18:58:32 End 2024.04.07 @ 19:39:24 Sessions 8 Manual Loads 0 Difficulty Rogue Special Mode None Game No. 8 Rogue 8 Adventurer 0 Explorer 0 Win Type - Total 0 Types 0/0/0/0/0/0/0/0/0 Lore% 13 Gallery% 7 Achievement% 10 Wizard Run 0 Options --------- Layout 0 ASCII 0 Keyboard 1 Movement Numpad Keybinds 0 Fullscreen 1 Font 18/SmallcapsGlow Map View 76x50 Zoom Use 0% Tactical HUD 0 Map Filters NONE Filters NONE Steam 1 RUN: 3e8e2a08-0136-42fa-a0c1-86522134e34a